fUSD/lending_fUSD_20250107
["ID","MTS","AMOUNT","RATE_DAILY","PERIOD"]
[347988194,1736261453170,-904.44,0.00010516,2]
[347988195,1736261453179,-602.62,0.00010516,2]
[347988196,1736261453189,-815.77,0.00010516,2]
[347988197,1736261453198,-1696.25,0.00010516,2]
[347988198,1736261453207,-626.02,0.00010516,2]
[347988199,1736261453216,-2247.47,0.00010516,2]
[347988200,1736261453225,-1689.16,0.00010516,2]
[347988201,1736261453234,-1680.48,0.00010516,2]
[347988202,1736261453243,-927.59,0.00010516,2]
[347988203,1736261453252,-1993.49,0.00010516,2]
[347988204,1736261453265,-1413.46,0.00010517,2]
[347988205,1736261453277,-500.0,0.00010517,2]
[347988206,1736261453287,-500.0,0.00010517,2]
[347988207,1736261453297,-500.0,0.00010517,2]
[347988208,1736261453306,-1108.32,0.00010517,2]
[347988209,1736261453315,-500.0,0.00010517,2]
[347988210,1736261453325,-523.6,0.00010517,2]
[347988211,1736261453335,-500.0,0.00010517,2]
[347988212,1736261453344,-793.13,0.00010517,2]
[347988213,1736261453353,-500.0,0.00010517,2]
[347988214,1736261453363,-890.02,0.00010517,2]
[347988215,1736261453372,-4205.61,0.00010517,2]
[347988216,1736261453381,-1341.12,0.00010517,2]
[347988217,1736261453391,-2203.69,0.00010517,2]
[347988218,1736261453401,-1428.26,0.00010517,2]
[347988219,1736261453411,-895.42,0.00010517,2]
[347988220,1736261453420,-2456.38,0.00010517,2]
[347988221,1736261453429,-500.0,0.00010517,2]
[347988222,1736261453438,-2563.24,0.00010517,2]
[347988223,1736261453448,-1236.1,0.00010517,2]
[347988224,1736261453457,-3195.72,0.00010517,2]
[347988225,1736261453466,-2893.91,0.00010517,2]
[347988226,1736261453476,-2709.21,0.00010517,2]
[347988227,1736261453485,-1936.27,0.00010517,2]
[347988228,1736261453494,-2700.12,0.00010519,2]
[347988229,1736261453503,-5067.01,0.00010519,2]
[347988230,1736261453514,-1024.98843681,0.00010519,2]
[347988231,1736261453526,-1640.41786084,0.00010519,2]
[347988232,1736261453569,-1835.87,9.966e-05,2]
[347988233,1736261453578,-524.84,0.00010516,2]
[347988234,1736261453588,-8979.55370235,0.00010519,2]
[347988235,1736261453597,-2719.73,0.00010519,2]
[347988236,1736261453607,-1331.29,0.00010519,2]
[347988237,1736261453615,-1497.32,0.00010519,2]
[347988238,1736261453625,-2451.31883165,0.00010519,2]
[347988239,1736261455471,-500.0,9.966e-05,2]
[347988240,1736261455480,-500.0,9.966e-05,2]
[347988241,1736261455490,-500.0,9.967e-05,2]
[347988242,1736261455499,-116.12213351,9.967e-05,2]
[347988243,1736261455513,-383.87786649,9.967e-05,2]
[347988244,1736261455523,-621.38456331,9.968e-05,2]
[347988245,1736261455535,-522.27499128,9.968e-05,2]
[347988246,1736261455547,-1375.32044541,9.968e-05,2]
[347988247,1736261455557,-500.0,9.971e-05,2]
[347988248,1736261455567,-500.0,0.0001004,2]
[347988249,1736261455577,-1835.87,0.0001024,2]
[347988250,1736261455587,-500.0,0.0001024,2]
[347988251,1736261455597,-500.0,0.0001024,2]
[347988252,1736261455606,-500.0,0.00010241,2]
[347988253,1736261455615,-500.0,0.00010241,2]
[347988254,1736261455624,-2345.43011615,0.00010242,2]
[347988255,1736261455636,-173.54988385,0.00010242,2]
[347988256,1736261455646,-527.49,0.00010245,2]
[347988257,1736261455655,-1835.87,0.00010514,2]
[347988258,1736261455664,-500.0,0.00010514,2]
[347988259,1736261455674,-500.0,0.00010514,2]
[347988260,1736261455684,-500.0,0.00010515,2]
[347988261,1736261455694,-2311.43211615,0.00010516,2]
[347988262,1736261455707,-207.54788385,0.00010516,2]
[347988263,1736261455716,-1089.44116835,0.00010519,2]
[347988264,1736261455727,-530.05,0.00010519,2]
[347988265,1736261455736,-1477.3,0.00010519,2]
[347988266,1736261455746,-2809.55,0.00010519,2]
[347988267,1736261455758,-2016.91,0.00010519,2]
[347988268,1736261455769,-1571.01,0.00010519,2]
[347988269,1736261455778,-1505.55,0.00010519,2]
[347988270,1736261455788,-1113.34,0.00010519,2]
[347988271,1736261455798,-1807.85,0.00010519,2]
[347988272,1736261455808,-3370.33,0.0001052,2]
[347988273,1736261455817,-2827.04,0.0001052,2]
[347988274,1736261455827,-1575.0,0.00010548,2]
[347988275,1736261455836,-150.9089772,0.00010573,2]
[347988276,1736261455846,-160.25009431,0.00010573,2]
[347988277,1736261455856,-151.04530295,0.00010573,2]
[347988278,1736261455866,-500.0,0.00010588,2]
[347988279,1736261455875,-534.58,0.00010588,2]
[347988280,1736261455885,-500.0,0.00010588,2]
[347988281,1736261455895,-500.0,0.00010588,2]
[347988282,1736261455904,-500.0,0.00010588,2]
[347988283,1736261455914,-611.78161876,0.00010588,2]
[347988284,1736261455924,-500.0,0.00010588,2]
[347988285,1736261455933,-500.0,0.00010588,2]
[347988286,1736261455943,-500.0,0.00010588,2]
[347988287,1736261455952,-500.0,0.00010588,2]
[347988288,1736261455962,-500.0,0.00010588,2]
[347988289,1736261455971,-500.69,0.00010588,2]
[347988290,1736261455981,-500.0,0.00010588,2]
[347988291,1736261455990,-311.21,0.00010588,2]
[347988292,1736261456000,-500.0,0.00010588,2]
[347988293,1736261456013,-500.0,0.00010588,2]
[347988294,1736261456022,-500.0,0.00010588,2]
[347988295,1736261456031,-243.2649545,0.00010588,2]
[347988296,1736261456064,-500.0,0.00010515,2]
[347988297,1736261456074,-256.7350455,0.00010588,2]
[347988298,1736261456083,-249.7649545,0.00010588,2]
[347988299,1736261456107,-250.2350455,0.00010588,2]
[347988300,1736261456116,-500.0,0.00010588,2]
[347988301,1736261456125,-359.45107339,0.00010588,2]
[347988302,1736261456137,-149.31892661,0.00010588,2]
[347988303,1736261456146,-500.7,0.00010588,2]
[347988304,1736261456156,-500.0,0.00010588,2]
[347988305,1736261456165,-500.0,0.00010588,2]
[347988306,1736261456175,-500.0,0.00010588,2]
[347988307,1736261456184,-500.0,0.00010588,2]
[347988308,1736261456193,-500.0,0.00010588,2]
[347988309,1736261456202,-500.0,0.00010588,2]
[347988310,1736261456212,-500.0,0.00010588,2]
[347988311,1736261456221,-500.0,0.00010588,2]
[347988312,1736261456231,-500.0,0.00010588,2]
[347988313,1736261456240,-500.0,0.00010588,2]
[347988314,1736261456249,-500.0,0.00010588,2]
[347988315,1736261456260,-124.50512795,0.00010588,2]
[347988316,1736261456273,-375.49487205,0.00010588,2]
[347988317,1736261456284,-500.0,0.00010588,2]
[347988318,1736261456293,-500.0,0.00010588,2]
[347988319,1736261456302,-500.0,0.00010588,2]
[347988320,1736261456312,-500.0,0.00010588,2]
[347988321,1736261456321,-500.0,0.00010588,2]
[347988322,1736261456330,-500.0,0.00010588,2]
[347988323,1736261456340,-571.61,0.00010588,2]
[347988324,1736261456349,-500.0,0.00010588,2]
[347988325,1736261456359,-500.0,0.00010588,2]
[347988326,1736261456369,-500.0,0.00010588,2]
[347988327,1736261456378,-500.0,0.00010588,2]
[347988328,1736261456387,-500.0,0.00010588,2]
[347988329,1736261456396,-626.14,0.00010588,2]
[347988330,1736261456406,-500.0,0.00010588,2]
[347988331,1736261456415,-500.0,0.00010588,2]
[347988332,1736261456425,-500.0,0.00010588,2]
[347988333,1736261456434,-701.4,0.00010588,2]
[347988334,1736261456444,-500.0,0.00010588,2]
[347988335,1736261456454,-500.0,0.00010588,2]
[347988336,1736261456463,-500.0,0.00010588,2]
[347988337,1736261456472,-4611.2,0.00010588,2]
[347988338,1736261456482,-500.0,0.00010588,2]
[347988339,1736261456491,-3101.85,0.00010588,2]
[347988340,1736261456501,-2175.538,0.00010673,2]
[347988341,1736261456512,-179.744,0.00010673,2]
[347988342,1736261456521,-1000.0,0.000107,2]
[347988343,1736261456531,-151.11,0.00010745,2]
[347988344,1736261456540,-696.6,0.00010787,2]
[347988345,1736261456550,-2356.09,0.00010787,2]
[347988346,1736261456559,-1733.14,0.00010787,2]
[347988347,1736261456569,-500.0,0.00010788,2]
[347988348,1736261456579,-741.85,0.00010788,2]
[347988349,1736261456588,-500.0,0.00010788,2]
[347988350,1736261456598,-576.97,0.00010788,2]
[347988351,1736261456607,-500.0,0.00010788,2]
[347988352,1736261456617,-1490.67,0.00010788,2]
[347988353,1736261456627,-534.77,0.00010788,2]
[347988354,1736261456636,-502.95,0.00010788,2]
[347988355,1736261456646,-309.21461397,0.00010788,2]
[347988356,1736261456655,-2395.4,0.00010788,2]
[347988357,1736261456664,-623.77,0.00010788,2]
[347988358,1736261456674,-1871.85,0.00010788,2]
[347988359,1736261456683,-1223.96,0.00010788,2]
[347988360,1736261456693,-764.11,0.00010788,2]
[347988361,1736261456702,-1490.21,0.00010788,2]
[347988362,1736261456711,-1511.3,0.00010788,2]
[347988363,1736261456721,-926.91,0.00010788,2]
[347988364,1736261456730,-799.73,0.00010788,2]
[347988365,1736261456740,-500.1,0.00010788,2]
[347988366,1736261456749,-716.27,0.00010788,2]
[347988367,1736261456759,-1501.21,0.00010788,2]
[347988368,1736261456769,-795.11,0.00010788,2]
[347988369,1736261456779,-500.0,0.00010788,2]
[347988370,1736261456788,-3633.08,0.00010788,2]
[347988371,1736261456797,-500.0,0.00010788,2]
[347988372,1736261456807,-1384.68,0.00010788,2]
[347988373,1736261456818,-500.0,0.00010788,2]
[347988374,1736261456827,-890.98,0.00010788,2]
[347988375,1736261456838,-1650.31,0.00010788,2]
[347988376,1736261456848,-500.0,0.00010788,2]
[347988377,1736261456857,-1590.63,0.00010788,2]
[347988378,1736261456866,-1790.16,0.00010788,2]
[347988379,1736261456875,-500.0,0.00010788,2]
[347988380,1736261456885,-537.52,0.00010788,2]
[347988381,1736261456894,-2389.78,0.00010788,2]
[347988382,1736261456904,-500.0,0.00010788,2]
[347988383,1736261456913,-687.83,0.00010788,2]
[347988384,1736261456923,-673.28,0.00010788,2]
[347988385,1736261456932,-500.0,0.00010788,2]
[347988386,1736261456942,-500.0,0.00010788,2]
[347988387,1736261456951,-500.0,0.00010788,2]
[347988388,1736261456961,-500.0,0.00010788,2]
[347988389,1736261456971,-1962.27,0.00010788,2]
[347988390,1736261456981,-500.0,0.00010788,2]
[347988391,1736261456991,-819.84,0.00010788,2]
[347988392,1736261457000,-1971.3,0.00010788,2]
[347988393,1736261457011,-1029.72,0.00010788,2]
[347988394,1736261457020,-3486.73,0.00010788,2]
[347988395,1736261457029,-687.73,0.00010788,2]
[347988396,1736261457039,-538.09,0.00010788,2]
[347988397,1736261457049,-1346.47,0.00010788,2]
[347988398,1736261457060,-515.23,0.00010788,2]
[347988399,1736261457070,-500.0,0.00010788,2]
[347988400,1736261457079,-1919.51,0.00010788,2]
[347988401,1736261457088,-541.84,0.00010788,2]
[347988402,1736261457098,-2141.73,0.00010788,2]
[347988403,1736261457107,-639.6,0.00010788,2]
[347988404,1736261457117,-6213.26,0.00010788,2]
[347988405,1736261457127,-621.96,0.00010788,2]
[347988406,1736261457136,-851.73,0.00010788,2]
[347988407,1736261457146,-1978.64,0.00010788,2]
[347988408,1736261457155,-500.0,0.00010788,2]
[347988409,1736261457164,-534.87,0.00010788,2]
[347988410,1736261457173,-561.5240863,0.00010788,2]
[347988411,1736261457182,-959.0,0.00010788,2]
[347988412,1736261457191,-581.85,0.00010788,2]
[347988413,1736261457200,-514.26,0.00010788,2]
[347988414,1736261457209,-1550.91,0.00010788,2]
[347988415,1736261457219,-971.6,0.00010788,2]
[347988416,1736261457228,-3517.54,0.00010788,2]
[347988417,1736261457238,-500.0,0.00010788,2]
[347988418,1736261457247,-567.73,0.00010788,2]
[347988419,1736261457258,-571.86,0.00010788,2]
[347988420,1736261457268,-825.69,0.00010788,2]
[347988421,1736261457281,-500.0,0.00010788,2]
[347988422,1736261457290,-614.9,0.00010788,2]
[347988423,1736261457299,-500.0,0.00010788,2]
[347988424,1736261457311,-500.0,0.00010788,2]
[347988425,1736261457322,-500.0,0.00010788,2]
[347988426,1736261457331,-2351.24,0.00010788,2]
[347988427,1736261457341,-2435.23,0.00010788,2]
[347988428,1736261457351,-500.0,0.00010788,2]
[347988429,1736261457360,-630.76,0.00010788,2]
[347988430,1736261457369,-546.98,0.00010788,2]
[347988431,1736261457379,-500.0,0.00010788,2]
[347988432,1736261457388,-694.52,0.00010788,2]
[347988433,1736261457398,-500.0,0.00010788,2]
[347988434,1736261457407,-211.73284021,0.00010788,2]
[347988435,1736261457416,-685.39,0.00010788,2]
[347988436,1736261457426,-1228.86,0.00010788,2]
[347988437,1736261457435,-4078.09,0.00010788,2]
[347988438,1736261457445,-500.0,0.00010788,2]
[347988439,1736261457455,-596.571998,0.00010788,2]
[347988440,1736261457464,-1456.09,0.00010788,2]
[347988441,1736261457473,-500.0,0.00010788,2]
[347988442,1736261457482,-350.29725501,0.00010788,2]
[347988443,1736261457496,-155.35274499,0.00010788,2]
[347988444,1736261457505,-500.0,0.00010788,2]
[347988445,1736261457517,-794.47,0.00010788,2]
[347988446,1736261457526,-1102.62,0.00010788,2]
[347988447,1736261457535,-834.45,0.00010788,2]
[347988448,1736261457544,-500.0,0.00010788,2]
[347988449,1736261457553,-500.0,0.00010788,2]
[347988450,1736261457562,-500.0,0.00010788,2]
[347988451,1736261457572,-571.71,0.00010788,2]
[347988452,1736261457581,-500.0,0.00010788,2]
[347988453,1736261457591,-635.991139,0.00010788,2]
[347988454,1736261457601,-500.0,0.00010788,2]
[347988455,1736261457610,-500.0,0.00010788,2]
[347988456,1736261457619,-563.56,0.00010788,2]
[347988457,1736261457628,-2013.48,0.00010788,2]
[347988458,1736261457638,-1908.02,0.00010788,2]
[347988459,1736261457647,-1960.52815673,0.00010788,2]
[347988460,1736261457659,-686.26184327,0.00010788,2]
[347988461,1736261457845,-1016.1,0.00010788,2]
[347988462,1736261457854,-500.0,0.00010788,2]
[347988463,1736261457864,-6176.85,0.00010788,2]
[347988464,1736261457873,-492.95843185,0.00010788,2]
[347988465,1736261458306,-107.95156815,0.00010788,2]
[347988466,1736261458315,-2624.36711923,0.00010788,2]
[347988467,1736261458326,-2115.47849276,0.00010788,2]
[347988468,1736261458341,-540.65357155,0.00010788,2]
[347988469,1736261458354,-535.64661421,0.00010788,2]
[347988470,1736261458365,-134.65420225,0.00010788,2]
[347988471,1736261458373,-126.53913309,0.00010788,2]
[347988472,1736261458384,-373.46086691,0.00010788,2]
[347988473,1736261458393,-140.63553703,0.00010788,2]
[347988474,1736261458404,-12.70713397,0.00010788,2]
[347988475,1736261458413,-500.0,0.00010788,2]
[347988476,1736261458422,-49.33204291,0.00010788,2]
[347988477,1736261458432,-450.66795709,0.00010788,2]
[347988478,1736261458442,-3217.98,0.00010788,2]
[347988479,1736261458451,-744.1,0.00010788,2]
[347988480,1736261458460,-500.0,0.00010788,2]
[347988481,1736261458469,-1130.26,0.00010788,2]
[347988482,1736261458478,-1491.76,0.00010788,2]
[347988483,1736261458487,-500.0,0.00010788,2]
[347988484,1736261458496,-755.62204291,0.00010788,2]
[347988485,1736261458508,-5804.23795709,0.00010788,2]
[347988486,1736261458517,-500.0,0.00010788,2]
[347988487,1736261458526,-500.0,0.00010788,2]
[347988488,1736261458536,-2327.21,0.00010788,2]
[347988489,1736261458545,-18148.01,0.00010788,2]
[347988490,1736261458554,-500.0,0.00010788,2]
[347988491,1736261458563,-681.97,0.00010788,2]
[347988492,1736261458572,-500.0,0.00010788,2]
[347988493,1736261458581,-500.0,0.00010788,2]
[347988494,1736261458591,-500.0,0.00010788,2]
[347988495,1736261458600,-1942.12,0.00010788,2]
[347988496,1736261458609,-6083.13,0.00010788,2]
[347988497,1736261458619,-1347.26806741,0.00010788,2]
[347988498,1736261458631,-400.00193259,0.00010788,2]
[347988499,1736261458640,-1841.85,0.00010788,2]
[347988500,1736261458649,-511.2,0.00010788,2]
[347988501,1736261458659,-632.56,0.00010788,2]
[347988502,1736261458668,-1532.76,0.00010788,2]
[347988503,1736261458677,-500.0,0.00010788,2]
[347988504,1736261458687,-762.49,0.00010788,2]
[347988505,1736261458696,-500.0,0.00010788,2]
[347988506,1736261458705,-844.68,0.00010788,2]
[347988507,1736261458717,-2999.11,0.00010788,2]
[347988508,1736261458727,-3056.32922275,0.00010788,2]
[347988509,1736261458738,-5025.02,0.00010788,2]
[347988510,1736261458758,-468.092625,0.00010788,2]
[347988511,1736261459028,-500.0,9.966e-05,2]
[347988512,1736261459038,-206.79998925,9.967e-05,2]
[347988513,1736261459048,-1173.0,0.00010245,2]
[347988514,1736261459058,-610.52,0.00010314,2]
[347988515,1736261459068,-1597.08815225,0.00010788,2]
[347988516,1736261459078,-500.0,0.00010788,2]
[347988517,1736261459087,-513.17,0.00010788,2]
[347988518,1736261459097,-1670.27,0.00010788,2]
[347988519,1736261459106,-500.0,0.00010788,2]
[347988520,1736261459116,-864.8,0.00010788,2]
[347988521,1736261459125,-1386.9,0.00010788,2]
[347988522,1736261459136,-1449.1,0.00010788,2]
[347988523,1736261459145,-1781.28,0.00010788,2]
[347988524,1736261459155,-5082.39,0.00010788,2]
[347988525,1736261459164,-1518.14,0.00010788,2]
[347988526,1736261459174,-500.0,0.00010788,2]
[347988527,1736261459183,-3544.23,0.00010788,2]
[347988528,1736261459192,-500.0,0.00010788,2]
[347988529,1736261459201,-500.0,0.00010788,2]
[347988530,1736261459211,-500.0,0.00010788,2]
[347988531,1736261459220,-507.83,0.00010788,2]
[347988532,1736261459230,-4071.47,0.00010788,2]
[347988533,1736261459239,-7633.79,0.00010788,2]
[347988534,1736261459249,-993.25,0.00010788,2]
[347988535,1736261459259,-500.0,0.00010788,2]
[347988536,1736261459268,-1174.19,0.00010788,2]
[347988537,1736261459281,-500.0,0.00010788,2]
[347988538,1736261459290,-500.0,0.00010788,2]
[347988539,1736261459300,-500.0,0.00010788,2]
[347988540,1736261459309,-1571.71,0.00010788,2]
[347988541,1736261459320,-500.0,0.00010788,2]
[347988542,1736261459329,-539.96,0.00010788,2]
[347988543,1736261459339,-1192.45,0.00010788,2]
[347988544,1736261459348,-9839.39,0.00010788,2]
[347988545,1736261459358,-500.0,0.00010788,2]
[347988546,1736261459368,-254.98645135,0.00010788,2]
[347988547,1736261459377,-594.65845489,0.00010788,2]
[347988548,1736261459386,-705.25,0.00010788,2]
[347988549,1736261459395,-500.0,0.00010788,2]
[347988550,1736261459404,-500.0,0.00010788,2]
[347988551,1736261459414,-580.40352711,0.00010788,2]
[347988552,1736261459424,-752.01,0.00010788,2]
[347988553,1736261459433,-866.44,0.00010788,2]
[347988554,1736261459443,-517.8335787,0.00010788,2]
[347988555,1736261459452,-684.98,0.00010788,2]
[347988556,1736261459461,-154.77885,0.00010788,2]
[347988557,1736261459471,-540.79,0.00010788,2]
[347988558,1736261459480,-2407.98,0.00010788,2]
[347988559,1736261459489,-1201.06,0.00010788,2]
[347988560,1736261459498,-500.0,0.00010788,2]
[347988561,1736261459509,-500.0,0.00010788,2]
[347988562,1736261459518,-10971.05,0.00010788,2]
[347988563,1736261459527,-500.0,0.00010788,2]
[347988564,1736261459538,-7577.96,0.00010788,2]
[347988565,1736261459547,-570.16,0.00010788,2]
[347988566,1736261459556,-500.0,0.00010788,2]
[347988567,1736261459566,-500.0,0.00010788,2]
[347988568,1736261459575,-2677.43,0.00010788,2]
[347988569,1736261459585,-1835.87,0.00010788,2]
[347988570,1736261459594,-500.0,0.00010788,2]
[347988571,1736261459603,-500.0,0.00010788,2]
[347988572,1736261459612,-745.06,0.00010789,2]
[347988573,1736261459621,-500.0,0.00010789,2]
[347988574,1736261459630,-500.0,0.00010789,2]
[347988575,1736261459640,-500.0,0.00010789,2]
[347988576,1736261459649,-500.0,0.00010789,2]
[347988577,1736261459659,-500.0,0.00010789,2]
[347988578,1736261459668,-500.0,0.00010789,2]
[347988579,1736261459677,-500.0,0.00010789,2]
[347988580,1736261459687,-500.0,0.00010789,2]
[347988581,1736261459696,-500.0,0.00010789,2]
[347988582,1736261459705,-500.0,0.00010789,2]
[347988583,1736261459714,-516.5,0.00010789,2]
[347988584,1736261459723,-500.0,0.00010789,2]
[347988585,1736261459733,-833.08,0.00010789,2]
[347988586,1736261459742,-500.0,0.00010789,2]
[347988587,1736261459751,-573.37,0.00010789,2]
[347988588,1736261459762,-500.0,0.00010789,2]
[347988589,1736261459771,-500.0,0.00010789,2]
[347988590,1736261459780,-500.0,0.00010789,2]
[347988591,1736261459790,-500.0,0.00010789,2]
[347988592,1736261459994,-500.0,0.00010789,2]
[347988593,1736261460004,-500.0,0.00010789,2]
[347988594,1736261460015,-500.0,0.00010789,2]
[347988595,1736261460024,-500.0,0.00010789,2]
[347988596,1736261460034,-500.0,0.00010789,2]
[347988597,1736261460044,-500.0,0.00010789,2]
[347988598,1736261460055,-712.32,0.00010789,2]
[347988599,1736261460066,-500.0,0.00010789,2]
[347988600,1736261460077,-500.0,0.00010789,2]
[347988601,1736261460087,-500.0,0.00010789,2]
[347988602,1736261460098,-500.0,0.00010789,2]
[347988603,1736261460108,-500.0,0.00010789,2]
[347988604,1736261460118,-500.0,0.00010789,2]
[347988605,1736261460127,-500.0,0.00010789,2]
[347988606,1736261460137,-500.0,0.00010789,2]
[347988607,1736261460146,-500.0,0.00010789,2]
[347988608,1736261460157,-525.73,0.00010789,2]
[347988609,1736261460166,-500.0,0.00010789,2]
[347988610,1736261460176,-500.0,0.00010789,2]
[347988611,1736261460185,-684.83,0.00010789,2]
[347988612,1736261460195,-500.0,0.00010789,2]
[347988613,1736261460204,-500.0,0.00010789,2]
[347988614,1736261460213,-500.0,0.00010789,2]
[347988615,1736261460223,-500.0,0.00010789,2]
[347988616,1736261460233,-500.0,0.00010789,2]
[347988617,1736261460243,-554.00196058,0.00010789,2]
[347988618,1736261460253,-500.0,0.00010789,2]
[347988619,1736261460265,-500.0,0.00010789,2]
[347988620,1736261460275,-500.0,0.00010789,2]
[347988621,1736261460286,-500.0,0.00010789,2]
[347988622,1736261460295,-724.74,0.00010789,2]
[347988623,1736261460305,-500.0,0.00010789,2]
[347988624,1736261460314,-500.0,0.00010789,2]
[347988625,1736261460323,-1743.1,0.00010789,2]
[347988626,1736261460332,-577.14,0.00010789,2]
[347988627,1736261460342,-500.0,0.00010789,2]
[347988628,1736261460351,-500.0,0.00010789,2]
[347988629,1736261460360,-500.0,0.00010789,2]
[347988630,1736261460370,-500.0,0.00010789,2]
[347988631,1736261460379,-500.0,0.00010789,2]
[347988632,1736261460388,-532.18,0.00010789,2]
[347988633,1736261460397,-2001.1,0.00010789,2]
[347988634,1736261460407,-845.47,0.00010789,2]
[347988635,1736261460415,-500.0,0.00010789,2]
[347988636,1736261460425,-500.0,0.00010789,2]
[347988637,1736261460434,-500.0,0.00010789,2]
[347988638,1736261460444,-500.0,0.00010789,2]
[347988639,1736261460453,-500.0,0.00010789,2]
[347988640,1736261460462,-959.87,0.00010789,2]
[347988641,1736261460471,-874.18,0.00010789,2]
[347988642,1736261460480,-500.0,0.00010789,2]
[347988643,1736261460490,-769.61,0.00010789,2]
[347988644,1736261460499,-549.65,0.00010789,2]
[347988645,1736261460509,-500.0,0.00010789,2]
[347988646,1736261460518,-500.0,0.00010789,2]
[347988647,1736261460528,-500.0,0.00010789,2]
[347988648,1736261460537,-500.0,0.00010789,2]
[347988649,1736261460547,-500.0,0.00010789,2]
[347988650,1736261460557,-611.32,0.00010789,2]
[347988651,1736261460566,-801.76,0.00010789,2]
[347988652,1736261460575,-1128.59,0.00010789,2]
[347988653,1736261460585,-953.16,0.00010789,2]
[347988654,1736261460594,-500.0,0.00010789,2]
[347988655,1736261460603,-500.0,0.00010789,2]
[347988656,1736261460612,-500.0,0.00010789,2]
[347988657,1736261460622,-500.0,0.00010789,2]
[347988658,1736261460631,-500.0,0.00010789,2]
[347988659,1736261460641,-1612.94,0.00010789,2]
[347988660,1736261460650,-500.0,0.00010789,2]
[347988661,1736261460659,-947.37,0.00010789,2]
[347988662,1736261460669,-721.52,0.00010789,2]
[347988663,1736261460678,-500.0,0.00010789,2]
[347988664,1736261460687,-610.67,0.00010789,2]
[347988665,1736261460697,-500.0,0.00010789,2]
[347988666,1736261460706,-1056.96,0.00010789,2]
[347988667,1736261460716,-500.0,0.00010789,2]
[347988668,1736261460725,-500.0,0.00010789,2]
[347988669,1736261460735,-500.0,0.00010789,2]
[347988670,1736261460745,-500.0,0.00010789,2]
[347988671,1736261460754,-1050.41,0.00010789,2]
[347988672,1736261460767,-1493.96,0.00010789,2]
[347988673,1736261460776,-500.0,0.00010789,2]
[347988674,1736261460786,-500.0,0.00010789,2]
[347988675,1736261460796,-500.0,0.00010789,2]
[347988676,1736261460805,-500.0,0.00010789,2]
[347988677,1736261460815,-678.01,0.00010789,2]
[347988678,1736261460824,-962.46,0.00010789,2]
[347988679,1736261460834,-500.0,0.00010789,2]
[347988680,1736261460843,-500.0,0.00010789,2]
[347988681,1736261460852,-500.0,0.00010789,2]
[347988682,1736261460862,-500.0,0.00010789,2]
[347988683,1736261460871,-809.84,0.00010789,2]
[347988684,1736261460881,-862.89,0.00010789,2]
[347988685,1736261460891,-500.0,0.00010789,2]
[347988686,1736261460900,-500.0,0.00010789,2]
[347988687,1736261460910,-773.86,0.00010789,2]
[347988688,1736261460919,-579.47,0.00010789,2]
[347988689,1736261460929,-1794.87,0.00010789,2]
[347988690,1736261460938,-500.0,0.00010789,2]
[347988691,1736261460948,-500.0,0.00010789,2]
[347988692,1736261460958,-500.0,0.00010789,2]
[347988693,1736261460967,-1025.72,0.00010789,2]